bitfinex/quotes_SOLUSD_20240822
["timestamp","ask_amount","ask_price","bid_price","bid_amount"]
[1724351750038,6.3047,143.5,143.47,14.77484798]
[1724351750231,6.3047,143.5,143.48,1.74484798]
[1724351750438,6.3047,143.5,143.47,13.03]
[1724351750646,6.3047,143.5,143.48,1.74465797]
[1724351750842,6.3047,143.5,143.47,13.03]
[1724351751053,6.3047,143.5,143.48,1.74465337]
[1724351751254,6.3047,143.5,143.47,20.71084478]
[1724351751442,6.3047,143.5,143.48,1.74462528]
[1724351751642,6.3047,143.5,143.49,1.74462528]
[1724351752446,6.3047,143.5,143.46,13.03]
[1724351752654,6.3047,143.5,143.47,46.74465467]
[1724351752859,6.3047,143.5,143.48,1.74465467]
[1724351753059,6.3047,143.5,143.45,7.68106553]
[1724351753357,6.3047,143.5,143.46,54.42579883]
[1724351753579,6.3047,143.5,143.47,1.7447333]
[1724351753734,6.3047,143.5,143.48,1.7447333]
[1724351753936,6.3047,143.5,143.46,58.03]
[1724351754164,6.3047,143.5,143.47,1.74468808]
[1724351754370,6.3047,143.5,143.48,1.74468808]
[1724351754546,6.3047,143.5,143.46,45.0]
[1724351754862,6.3047,143.5,143.47,1.74473305]
[1724351755044,6.3047,143.5,143.45,45.0]
[1724351755245,6.3047,143.5,143.46,7.68146211]
[1724351755447,6.3047,143.5,143.45,45.0]
[1724351755646,6.3047,143.5,143.46,7.68123464]
[1724351755867,6.3047,143.5,143.45,45.0]
[1724351756077,6.3047,143.5,143.46,7.68083533]
[1724351756274,6.3047,143.5,143.45,45.0]
[1724351756458,6.3047,143.5,143.46,7.68122425]
[1724351756660,6.3047,143.5,143.45,45.0]
[1724351756953,6.3047,143.5,143.46,7.68117534]
[1724351757147,6.3047,143.5,143.43,20.3124882]
[1724351757148,6.3047,143.5,143.43,0.3124882]
[1724351757349,21.07719876,143.5,143.44,7.68059091]
[1724351757562,21.07719876,143.5,143.43,0.3124882]
[1724351757865,21.07719876,143.5,143.44,7.68081111]
[1724351758067,21.07719876,143.5,143.45,7.68124195]
[1724351758258,21.07719876,143.5,143.43,0.3124882]
[1724351758455,21.07719876,143.5,143.44,7.68124235]
[1724351758664,21.07719876,143.5,143.45,7.68124235]
[1724351758871,21.07719876,143.5,143.43,0.4379782]
[1724351759051,21.07719876,143.5,143.44,7.80674923]
[1724351759375,21.07719876,143.5,143.44,0.12549]
[1724351760270,26.3034,143.5,143.43,45.3124882]
[1724351760462,1.74249979,143.49,143.44,7.68146789]
[1724351760659,1.74249979,143.49,143.43,45.3124882]
[1724351760974,1.74249979,143.49,143.44,7.68223801]
[1724351761268,13.03,143.48,143.43,0.3124882]
[1724351761470,15.3204,143.47,143.43,0.3124882]
[1724351761775,6.0295,143.46,143.43,0.3124882]
[1724351762752,6.0295,143.46,143.43,45.3124882]
[1724351762951,6.0295,143.46,143.43,0.3124882]
[1724351763150,6.0295,143.46,143.43,7.99407917]
[1724351763585,6.0295,143.46,143.43,0.3124882]
[1724351767154,15.3204,143.47,143.44,0.12549]
[1724351767354,15.3204,143.47,143.44,45.12549]
[1724351768183,6.077,143.5,143.44,45.12549]
[1724351771383,19.107,143.5,143.44,45.12549]
[1724351771584,26.0756,143.5,143.44,45.12549]
[1724351772083,26.0756,143.5,143.43,0.3124882]
[1724351772859,13.03,143.48,143.43,0.3124882]
[1724351777070,26.0757,143.5,143.43,0.3124882]
[1724351777399,26.0757,143.5,143.43,7.99002024]
[1724351777562,19.107,143.5,143.43,21.02002024]
[1724351777758,6.077,143.5,143.43,21.02002024]
[1724351777963,6.077,143.5,143.44,45.12549]
[1724351778164,6.077,143.5,143.45,13.03]
[1724351778370,6.0323,143.53,143.49,13.03]
[1724351778664,6.0323,143.53,143.5,0.12549]
[1724351778891,6.0323,143.53,143.5,45.12549]
[1724351779671,16.3766,143.55,143.51,13.15549]
[1724351779864,16.3766,143.55,143.52,45.0]
[1724351780066,16.3766,143.55,143.52,45.12549]
[1724351780295,16.3766,143.55,143.52,45.0]
[1724351780664,6.0323,143.57,143.52,45.0]
[1724351781086,6.0323,143.57,143.53,13.28098]
[1724351781398,6.0323,143.57,143.54,45.0]
[1724351781691,22.4089,143.62,143.55,13.28098]
[1724351781872,22.4089,143.62,143.56,45.0]
[1724351782069,22.4089,143.62,143.57,13.28098]
[1724351782308,22.4089,143.66,143.59,13.03]
[1724351782603,22.4089,143.66,143.6,0.12549]
[1724351782795,22.4089,143.66,143.61,1.38959418]
[1724351783626,22.4089,143.66,143.6,45.12549]
[1724351783778,6.9619,143.64,143.57,0.12549]
[1724351783984,13.03,143.64,143.57,65.12549]
[1724351784396,13.03,143.64,143.57,45.0]
[1724351784689,39.6018,143.64,143.54,20.0]
[1724351784889,39.6018,143.64,143.55,65.0]
[1724351785691,6.9625,143.63,143.55,65.0]
[1724351785891,6.9625,143.63,143.56,0.12549]
[1724351786787,6.9625,143.63,143.55,65.0]
[1724351787003,32.64,143.62,143.55,65.0]
[1724351787596,13.0486,143.61,143.51,40.2026027]
[1724351787893,13.0486,143.61,143.52,20.0]
[1724351787894,15.4984,143.6,143.52,20.0]
[1724351788268,15.4984,143.6,143.51,20.0]
[1724351788695,15.4984,143.6,143.52,45.25098]
[1724351788899,15.4984,143.6,143.53,20.0]
[1724351789118,49.87974149,143.6,143.48,20.0]
[1724351789403,39.6048,143.58,143.48,20.0]
[1724351789706,6.9652,143.57,143.48,20.0]
[1724351790989,6.9652,143.57,143.49,45.12549]
[1724351791178,6.9652,143.57,143.49,45.25098]
[1724351791772,6.9652,143.57,143.5,20.0]
[1724351794788,39.6047,143.58,143.5,20.0]
[1724351794995,6.9647,143.58,143.51,45.12549]
[1724351797713,6.9643,143.59,143.51,45.12549]
[1724351798007,6.9643,143.59,143.52,0.12549]
[1724351798506,55.1022,143.6,143.52,0.12549]
[1724351799009,6.9643,143.59,143.52,0.12549]
[1724351799212,15.4984,143.6,143.52,40.12549]
[1724351799511,15.4984,143.6,143.53,45.12549]
[1724351799810,15.4984,143.6,143.54,0.12549]
[1724351800910,6.9642,143.59,143.53,45.12549]
[1724351803402,6.9642,143.59,143.53,45.0]
[1724351803915,6.9651,143.58,143.53,45.0]
[1724351804115,6.9643,143.59,143.53,45.0]
[1724351806712,6.9643,143.59,143.52,45.0]
[1724351807296,6.9647,143.58,143.52,45.0]
[1724351807805,6.9644,143.59,143.52,45.0]
[1724351808395,20.0248,143.58,143.52,45.0]
[1724351808607,20.0248,143.58,143.51,45.12549]
[1724351808925,20.0248,143.58,143.52,0.12549]
[1724351809095,20.0248,143.58,143.51,45.0]
[1724351816311,23.67197334,143.6,143.51,78.06]
[1724351816622,22.4625,143.6,143.53,13.06]
[1724351816817,22.4625,143.6,143.54,45.7371113]
[1724351817330,15.4984,143.6,143.55,0.61157869]
[1724351818225,15.4984,143.6,143.56,0.12549]
[1724351820630,6.0853,143.61,143.56,0.12549]
[1724351820811,6.0853,143.61,143.56,0.25098]
[1724351821020,16.64615541,143.64,143.57,0.61149349]
[1724351821202,15.4365,143.64,143.58,0.25098]
[1724351821512,15.4365,143.64,143.58,0.86243099]
[1724351821711,15.4365,143.64,143.58,45.86243099]
[1724351822521,15.4365,143.64,143.58,45.25098]
[1724351825926,19.3755,143.65,143.58,45.25098]
[1724351827848,20.0209,143.66,143.59,1.39178807]
[1724351828048,20.0209,143.66,143.6,0.25098]
[1724351828715,20.0209,143.66,143.59,0.25098]
[1724351831625,13.06,143.66,143.59,0.25098]
[1724351833145,20.0209,143.66,143.59,0.25098]
[1724351834637,16.4231,143.67,143.59,54.70336384]
[1724351834836,19.3033,143.68,143.6,45.0]
[1724351835154,19.3033,143.68,143.61,1.64318744]
[1724351836058,19.3033,143.68,143.61,0.25098]
[1724351836229,26.2632,143.68,143.61,0.25098]
[1724351836863,13.06,143.66,143.61,0.12549]
[1724351837433,13.06,143.66,143.6,45.0]
[1724351837649,13.06,143.64,143.56,16.0129]
[1724351838028,13.06,143.64,143.57,20.0]
[1724351838760,20.0218,143.64,143.57,20.0]
[1724351838931,13.06,143.62,143.56,16.0129]
[1724351839263,13.06,143.6,143.54,6.407]
[1724351840034,13.06,143.6,143.53,7.25737408]
[1724351840359,13.06,143.58,143.52,16.1784]
[1724351840538,13.06,143.58,143.52,17.922352]
[1724351841248,13.06,143.6,143.52,17.922352]
[1724351842569,13.06,143.6,143.53,65.25098]
[1724351848657,20.0238,143.6,143.53,65.25098]
[1724351848978,13.06,143.58,143.53,65.25098]
[1724351850269,13.06,143.58,143.53,45.12549]
[1724351850580,13.06,143.58,143.51,7.25543673]
[1724351850780,13.06,143.58,143.52,20.0]
[1724351851784,13.06,143.58,143.53,46.51672627]
[1724351852285,16.0775,143.59,143.53,45.12549]
[1724351858798,13.06,143.58,143.53,45.12549]
[1724351863605,13.06,143.58,143.53,45.0]
[1724351864704,13.06,143.58,143.52,20.0]
[1724351864880,13.06,143.58,143.52,21.74401199]
[1724351865274,13.06,143.58,143.52,20.0]
[1724351865987,13.06,143.58,143.52,21.74401199]
[1724351867606,13.06,143.54,143.46,20.0]
[1724351867811,13.06,143.52,143.47,1.74440601]
[1724351867993,13.06,143.52,143.48,1.74440601]
[1724351868308,92.12517156,143.57,143.46,27.2584414]
[1724351868309,13.06,143.54,143.46,27.2584414]
[1724351868804,13.06,143.54,143.47,46.7444422]
[1724351868997,13.06,143.54,143.48,0.25098]
[1724351871515,35.9543,143.57,143.48,69.52408]
[1724351871683,35.9543,143.57,143.49,45.0]
[1724351872013,35.9543,143.57,143.5,0.25098]
[1724351873000,13.06,143.55,143.5,0.25098]
[1724351873390,13.06,143.55,143.5,0.12549]
[1724351874898,13.06,143.55,143.49,45.0]
[1724351884721,35.9543,143.57,143.5,0.25098]
[1724351885311,35.9543,143.57,143.5,7.92664021]
[1724351885519,35.9543,143.57,143.51,45.0]
[1724351887410,13.06,143.57,143.51,45.0]
[1724351887611,20.0243,143.59,143.52,0.12549]
[1724351887827,13.06,143.59,143.52,0.12549]
[1724351888046,13.06,143.59,143.52,0.25098]
[1724351888343,13.06,143.59,143.52,1.50331853]
[1724351888538,6.9639,143.6,143.52,1.50331853]
[1724351888726,13.06,143.59,143.52,1.50331853]
[1724351888937,13.06,143.59,143.52,9.17411351]
[1724351889243,13.06,143.59,143.53,45.0]
[1724351889420,6.9639,143.6,143.54,1.25216403]
[1724351889736,13.06,143.59,143.54,1.25216403]
[1724351890625,13.06,143.59,143.53,45.0]
[1724351890811,13.06,143.59,143.54,0.12549]
[1724351891007,20.0245,143.59,143.53,0.12549]
[1724351891228,13.06,143.59,143.52,45.25098]
[1724351891438,13.06,143.57,143.52,0.12549]
[1724351891738,13.06,143.57,143.51,45.0]
[1724351891911,13.06,143.57,143.52,0.25098]
[1724351893009,13.06,143.57,143.51,45.0]
[1724351893516,13.06,143.57,143.52,0.25098]
[1724351894729,13.06,143.57,143.51,45.0]
[1724351896524,13.06,143.55,143.51,45.0]
[1724351896732,13.06,143.57,143.51,45.0]
[1724351897820,13.06,143.55,143.5,0.12549]
[1724351898027,13.06,143.55,143.49,52.92195297]
[1724351898227,13.06,143.55,143.5,27.67097297]
[1724351902223,13.06,143.55,143.5,20.0]
[1724351902429,13.06,143.55,143.5,27.67075789]
[1724351902841,13.06,143.55,143.5,20.0]
[1724351903449,6.9653,143.57,143.5,20.0]
[1724351903743,13.06,143.55,143.5,20.0]
[1724351905245,13.06,143.56,143.5,20.0]
[1724351905545,13.06,143.56,143.51,7.67067252]
[1724351905955,13.06,143.56,143.5,20.0]
[1724351906134,13.06,143.56,143.51,7.67068493]
[1724351906454,13.06,143.56,143.51,7.67069198]
[1724351906827,13.06,143.56,143.5,20.0]
[1724351907033,13.06,143.56,143.51,7.67213263]
[1724351907526,20.0257,143.56,143.51,7.67213263]
[1724351907748,13.06,143.56,143.5,20.0]
[1724351907944,13.06,143.56,143.48,16.2131]
[1724351907945,13.06,143.56,143.49,20.0]
[1724351908152,13.06,143.56,143.5,7.67175833]
[1724351908359,13.06,143.56,143.49,20.0]
[1724351908534,13.06,143.56,143.5,7.67176005]
[1724351908857,13.06,143.56,143.49,20.0]
[1724351909023,13.06,143.56,143.5,52.79664543]
[1724351909344,13.06,143.56,143.5,45.12549]
[1724351912143,1.21050787,143.57,143.5,45.12549]
[1724351912453,6.9647,143.58,143.51,7.6667476]
[1724351912668,20.0247,143.58,143.5,45.12549]
[1724351912853,20.0247,143.58,143.51,7.66687614]
[1724351913050,13.06,143.58,143.52,7.66687614]
[1724351913235,13.06,143.58,143.5,45.12549]
[1724351913555,13.06,143.58,143.51,7.79235375]
[1724351913774,13.06,143.58,143.52,52.79235375]
[1724351914059,13.06,143.58,143.52,45.0]
[1724351915947,13.06,143.58,143.53,0.12549]
[1724351916366,13.06,143.58,143.53,45.12549]
[1724351916543,13.06,143.58,143.53,0.12549]
[1724351916745,13.06,143.58,143.52,0.12549]
[1724351917478,13.06,143.58,143.53,7.6667952]
[1724351917643,13.06,143.58,143.52,0.12549]
[1724351917839,13.06,143.58,143.53,7.66492105]
[1724351918060,13.06,143.56,143.52,0.12549]
[1724351918258,13.06,143.56,143.51,45.12549]
[1724351918571,13.06,143.56,143.52,7.66554259]
[1724351918798,13.06,143.56,143.5,45.12549]
[1724351918948,13.06,143.56,143.51,20.0]
[1724351919148,13.06,143.56,143.52,7.66595555]
[1724351919371,13.06,143.56,143.51,20.0]
[1724351919550,13.06,143.56,143.52,7.6658526]
[1724351919873,13.06,143.56,143.51,20.0]
[1724351920077,13.06,143.56,143.52,7.6658526]
[1724351920275,13.06,143.56,143.51,20.0]
[1724351920449,13.06,143.56,143.52,7.6645554]
[1724351920651,13.06,143.56,143.51,20.0]
[1724351922673,6.9643,143.59,143.51,20.0]
[1724351922883,13.06,143.56,143.51,20.0]
[1724351923476,13.06,143.56,143.52,7.65920211]
[1724351923684,13.06,143.56,143.51,20.0]
[1724351923857,13.06,143.56,143.52,52.78444787]
[1724351924051,13.06,143.56,143.52,45.12549]
[1724351924973,13.06,143.58,143.52,46.51870401]
[1724351925180,13.06,143.58,143.53,7.6593965]
[1724351925351,13.06,143.58,143.52,46.51870401]
[1724351925551,13.06,143.58,143.53,7.6593965]
[1724351925751,13.06,143.58,143.52,46.51870401]
[1724351925955,13.06,143.58,143.53,7.6593965]
[1724351926251,13.06,143.6,143.54,45.25098]
[1724351926479,13.06,143.6,143.54,0.12549]
[1724351926689,13.06,143.6,143.53,7.78460348]
[1724351926985,13.06,143.6,143.54,45.12549]
[1724351927149,13.06,143.6,143.55,0.12549]
[1724351927350,13.06,143.6,143.55,45.0]
[1724351929083,13.06,143.58,143.55,45.0]
[1724351929674,13.06,143.58,143.53,0.12549]
[1724351929987,13.06,143.58,143.52,52.90795573]
[1724351930186,13.06,143.58,143.53,27.65697573]
[1724351931388,13.06,143.58,143.53,20.0]
[1724351931588,13.06,143.58,143.53,27.6570764]
[1724351932590,29.018,143.61,143.53,27.6570764]
[1724351932889,13.06,143.58,143.53,27.6570764]
[1724351933688,13.06,143.58,143.53,20.0]
[1724351934163,13.06,143.58,143.53,27.65684632]
[1724351934565,13.06,143.58,143.53,20.0]
[1724351935090,13.06,143.6,143.54,0.12549]
[1724351935395,13.06,143.6,143.54,45.12549]
[1724351936064,13.06,143.6,143.55,0.12549]
[1724351936261,22.0546,143.61,143.55,0.12549]
[1724351937087,14.27038118,143.62,143.55,20.12549]
[1724351937088,13.06,143.62,143.55,20.12549]
[1724351937277,13.06,143.62,143.56,45.12549]
[1724351942904,28.3684,143.64,143.56,45.12549]
[1724351943104,13.06,143.62,143.56,45.12549]
[1724351943680,28.3684,143.64,143.56,45.12549]
[1724351943894,13.06,143.62,143.56,45.12549]
[1724351944575,28.3684,143.64,143.56,45.12549]
[1724351944798,13.06,143.62,143.56,45.12549]
[1724351947882,13.06,143.6,143.56,45.12549]
[1724351949716,28.3685,143.64,143.56,45.12549]
[1724351950027,13.06,143.61,143.56,45.12549]
[1724351955620,13.06,143.61,143.56,45.0]
[1724351967227,13.06,143.61,143.52,16.1547]
[1724351967396,1.21000705,143.63,143.52,16.1547]
[1724351967397,13.06,143.59,143.53,7.65381567]
[1724351967605,13.06,143.59,143.54,20.0]
[1724351968437,13.06,143.59,143.53,27.65352336]
[1724351968648,13.06,143.59,143.54,45.25098]
[1724351969640,13.06,143.59,143.54,45.0]
[1724351970816,13.06,143.59,143.53,20.0]
[1724351971015,13.06,143.57,143.53,20.0]
[1724351978045,13.06,143.57,143.52,16.28019]
[1724351978252,13.06,143.57,143.53,45.0]
[1724351978719,1.74159534,143.56,143.48,29.0034]
[1724351978924,13.06,143.55,143.49,85.25098]
[1724351979421,13.06,143.55,143.49,65.25098]
[1724351980554,13.06,143.55,143.49,85.25098]
[1724351981750,13.06,143.57,143.49,85.25098]
[1724351982248,22.6625,143.59,143.49,105.35754039]
[1724351982411,13.06,143.58,143.49,105.35754039]
[1724351985952,15.6982,143.59,143.49,105.35754039]
[1724351986121,28.7582,143.59,143.49,105.35754039]
[1724351987236,28.7582,143.59,143.49,98.31098]
[1724351988125,13.06,143.57,143.49,98.31098]
[1724351989148,13.06,143.57,143.49,78.31098]
[1724351989339,13.06,143.57,143.49,98.31098]
[1724351989856,13.06,143.57,143.5,1.74401351]
[1724351990168,13.06,143.57,143.51,1.99499351]
[1724351990347,13.06,143.57,143.52,1.74401351]
[1724351990547,15.6982,143.59,143.53,1.74401351]
[1724351990747,13.06,143.57,143.51,0.25098]
[1724351990953,13.06,143.57,143.52,1.74401283]
[1724351991245,13.06,143.57,143.53,1.74401283]
[1724351991458,13.06,143.57,143.5,0.25098]
[1724351991660,13.06,143.57,143.51,1.74401242]
[1724351991961,13.06,143.57,143.52,1.86950242]
[1724351992167,13.06,143.57,143.53,1.74401242]
[1724351992371,13.06,143.57,143.5,0.25098]
[1724351992665,13.06,143.57,143.51,1.74401242]
[1724351992877,13.06,143.57,143.52,1.86950242]
[1724351993174,13.06,143.57,143.53,1.74401242]
[1724351993354,13.06,143.57,143.5,0.25098]
[1724351993664,13.06,143.57,143.51,1.74400267]
[1724351993904,13.06,143.57,143.52,0.12549]
[1724351994073,13.06,143.57,143.52,1.74400317]
[1724351994285,13.06,143.57,143.53,1.74400317]
[1724351994459,13.06,143.57,143.5,0.25098]
[1724351994648,13.06,143.57,143.51,1.74401365]
[1724351994844,13.06,143.57,143.52,1.86950365]
[1724351995044,13.06,143.57,143.53,1.74401365]
[1724351995346,13.06,143.57,143.5,0.25098]
[1724351995655,13.06,143.57,143.51,1.7440345]
[1724351995841,13.06,143.57,143.52,1.8695245]
[1724351996043,13.06,143.57,143.53,1.7440345]
[1724351996343,13.06,143.57,143.5,0.25098]
[1724351996540,13.06,143.57,143.51,1.74401242]
[1724351996745,13.06,143.57,143.52,1.86950242]
[1724351996944,13.06,143.57,143.53,1.74401242]
[1724351997171,13.06,143.57,143.5,0.25098]
[1724351997342,13.06,143.57,143.51,1.74401317]
[1724351997541,13.06,143.57,143.52,1.86950317]
[1724351997748,28.7582,143.59,143.53,1.74401317]
[1724351997942,28.7582,143.59,143.54,1.74401317]
[1724351998142,28.7582,143.59,143.52,0.12549]
[1724351998374,28.7582,143.59,143.53,1.74397302]
[1724351998554,28.7582,143.59,143.54,1.74397302]
[1724351998762,28.7582,143.59,143.52,45.12549]
[1724351998958,28.7582,143.59,143.53,1.74397302]
[1724351999177,28.7582,143.59,143.54,1.74397302]
[1724351999380,28.7582,143.59,143.52,45.12549]
[1724351999553,28.7582,143.59,143.53,1.74402128]
[1724351999875,28.7582,143.59,143.54,1.74399227]
[1724352000179,28.7582,143.59,143.52,45.12549]
[1724352000355,28.7582,143.59,143.53,1.74401202]
[1724352000676,28.7582,143.59,143.52,45.12549]
[1724352000878,13.06,143.57,143.54,1.74397277]
[1724352001181,13.06,143.57,143.52,45.12549]
[1724352001385,13.06,143.57,143.53,1.74398327]
[1724352001581,13.06,143.57,143.54,1.74398327]
[1724352001867,13.06,143.57,143.52,45.12549]
[1724352002071,13.06,143.57,143.53,1.74401252]
[1724352002376,13.06,143.57,143.54,1.74401252]
[1724352002550,13.06,143.57,143.52,45.12549]
[1724352002867,13.06,143.57,143.53,1.74397764]
[1724352003080,13.06,143.57,143.52,45.12549]
[1724352003378,13.06,143.57,143.53,1.74401639]
[1724352003587,13.06,143.58,143.54,1.74401639]
[1724352003901,1.74150447,143.57,143.52,45.12549]
[1724352004058,13.06,143.58,143.53,1.74401696]
[1724352004257,13.06,143.58,143.54,1.74401696]
[1724352004461,13.06,143.58,143.52,45.12549]
[1724352004662,13.06,143.58,143.53,1.74401252]
[1724352004862,13.06,143.58,143.54,1.74401252]
[1724352005161,13.06,143.58,143.52,45.12549]
[1724352005365,13.06,143.58,143.53,1.74401301]
[1724352005565,13.06,143.58,143.54,1.74401301]
[1724352005780,13.06,143.58,143.52,45.12549]
[1724352005997,13.06,143.58,143.53,1.74401301]
[1724352006164,13.06,143.58,143.54,1.74401301]
[1724352006462,13.06,143.58,143.52,45.12549]
[1724352006659,13.06,143.58,143.53,1.74401301]
[1724352006970,15.6982,143.59,143.54,1.74401301]
[1724352007190,15.6982,143.59,143.55,1.74401301]
[1724352007488,15.6982,143.59,143.52,45.12549]
[1724352007697,15.6982,143.59,143.53,1.86937471]
[1724352007870,15.6982,143.59,143.54,1.74388471]
[1724352008078,15.6982,143.59,143.55,1.74388471]
[1724352008290,15.6982,143.59,143.53,0.12549]
[1724352011781,15.6982,143.59,143.53,20.12549]
[1724352012091,15.6982,143.59,143.54,45.12549]
[1724352013403,19.3607,143.6,143.54,45.12549]
[1724352013572,19.3607,143.6,143.55,0.12549]
[1724352014897,13.06,143.58,143.54,45.12549]
[1724352015597,13.06,143.58,143.54,45.0]
[1724352015800,13.06,143.58,143.53,20.0]
[1724352015801,13.06,143.56,143.53,20.0]
[1724352016101,13.06,143.56,143.5,20.0]
[1724352016593,13.06,143.56,143.49,7.28094261]
[1724352016779,13.06,143.54,143.49,7.28094261]
[1724352017797,13.06,143.56,143.49,7.28094261]
[1724352018000,13.06,143.56,143.5,65.25098]
[1724352018394,13.06,143.54,143.5,65.25098]
[1724352019912,13.06,143.56,143.5,65.25098]
[1724352026996,13.06,143.54,143.5,65.12549]
[1724352029416,13.06,143.54,143.5,65.0]
[1724352031005,13.06,143.54,143.51,7.64639888]
[1724352031205,13.06,143.54,143.52,7.64639888]
[1724352031393,13.06,143.54,143.5,65.0]
[1724352031594,13.06,143.54,143.51,7.64638163]
[1724352031815,13.06,143.54,143.52,7.64638163]
[1724352032018,13.06,143.54,143.5,65.0]
[1724352032318,13.06,143.54,143.51,7.64646223]
[1724352032491,13.06,143.54,143.52,7.64646223]
[1724352032690,13.06,143.54,143.5,65.0]
[1724352032691,15.6114,143.58,143.5,65.0]
[1724352032911,28.6714,143.58,143.51,7.89725656]
[1724352033096,28.6714,143.58,143.52,52.64627656]
[1724352033426,28.6714,143.58,143.51,0.25098]
[1724352033796,28.6714,143.58,143.52,7.64435071]
[1724352034005,28.6714,143.58,143.51,0.25098]
[1724352034211,28.6714,143.58,143.52,7.6456715]
[1724352034413,28.6714,143.58,143.51,0.25098]
[1724352034617,28.6714,143.58,143.52,7.64561601]
[1724352034920,28.6714,143.58,143.51,0.25098]
[1724352035121,28.6714,143.58,143.52,7.64621063]
[1724352035326,28.6714,143.58,143.51,0.25098]
[1724352035511,28.6714,143.58,143.52,7.64607617]
[1724352035705,28.6714,143.58,143.51,0.25098]
[1724352035907,28.6714,143.58,143.52,7.64618287]
[1724352036113,28.6714,143.58,143.51,0.25098]
[1724352036300,28.6714,143.58,143.52,7.64618525]
[1724352036500,28.6714,143.58,143.51,0.25098]
[1724352036700,28.6714,143.58,143.52,7.64619012]
[1724352036999,28.6714,143.58,143.51,0.25098]
[1724352037219,28.6714,143.58,143.52,7.64618697]
[1724352037436,15.6114,143.58,143.51,0.25098]
[1724352037723,28.6714,143.58,143.52,7.64620424]
[1724352037919,28.6714,143.58,143.51,0.25098]
[1724352038222,15.6114,143.58,143.52,7.64619779]
[1724352038522,15.6114,143.58,143.53,45.0]
[1724352038710,15.6114,143.58,143.51,13.31098]
[1724352039025,15.6114,143.58,143.52,72.6459317]
[1724352039222,6.3007,143.6,143.53,7.8969117]
[1724352039524,6.3007,143.6,143.54,52.6459317]
[1724352039707,13.06,143.61,143.55,52.89656284]
[1724352039905,13.06,143.61,143.55,45.12549]
[1724352040323,13.06,143.61,143.55,0.12549]
[1724352040626,13.06,143.61,143.55,0.25098]
[1724352044228,13.06,143.59,143.54,45.0]
[1724352044430,13.06,143.59,143.53,45.12549]
[1724352044636,13.06,143.59,143.54,7.7702027]
[1724352044822,13.06,143.59,143.55,45.0]
[1724352051535,13.06,143.59,143.54,45.12549]
[1724352051739,13.06,143.59,143.55,0.12549]
[1724352058516,13.06,143.59,143.54,45.12549]
[1724352059244,13.06,143.61,143.54,45.12549]
[1724352059431,13.06,143.61,143.55,0.12549]
[1724352060637,23.208,143.62,143.55,0.12549]
[1724352060638,16.2451,143.62,143.55,0.12549]
[1724352060950,29.3051,143.62,143.55,20.12549]
[1724352061122,29.3051,143.62,143.56,45.12549]
[1724352061312,29.3051,143.62,143.57,0.12549]
[1724352062356,6.6451,143.63,143.58,13.06]
[1724352062522,22.3607,143.66,143.59,46.64347078]
[1724352062719,15.3999,143.66,143.59,45.25098]
[1724352065145,13.06,143.65,143.59,45.25098]
[1724352065354,13.06,143.63,143.59,45.0]
[1724352065555,13.06,143.63,143.55,20.0]
[1724352065762,13.06,143.63,143.56,65.25098]
[1724352068541,13.06,143.63,143.57,1.7434892]